[Event "Superbet Blitz Poland 2023"]
[Site "Warsaw"]
[Date "2023.05.25"]
[Round "13"]
[White "Duda, Jan-Krzysztof"]
[Black "Shevchenko, Kirill"]
[Result "1-0"]
[ECO "A48"]
[WhiteElo "2724"]
[BlackElo "2684"]
[Annotator "TA"]
[PlyCount "79"]
[EventDate "2023.05.24"]
[EventType "tourn"]
[EventCountry "POL"]
[SourceTitle "playchess.com"]
[Source "ChessBase"]
[SourceQuality "1"]
[TimeControl "300+2"]

{[%evp 13,79,0,0,-19,0,0,8,15,8,9,0,12,15,7,27,-3,35,37,36,56,50,15,27,0,31,-5,92,8,176,206,214,210,342,360,356,378,370,363,400,402,791,730,695,718,1298,1273,1471,1458,1428,1416,1510,1244,29980,29981,29979,29980,29980,5639,29988,29988,29988,29989,29989,29990,29992,527,29992,29990]} 1. d4 {[%emt 0:00:01]} Nf6 {[%emt 0:00:01]} 2. Nf3 {[%emt 0:00:01]} g6 {[%emt 0:00:01]} 3. Bf4 {[%emt 0:00:01]} Bg7 {[%emt 0:00:03]} 4. e3 {[%emt 0:00:01]} b6 {[%emt 0:00:07]} 5. Be2 {[%emt 0:00:05]} Bb7 {[%emt 0:00:01]} 6. h3 {[%emt 0:00:04]} O-O {[%emt 0:00:03]} 7. O-O {[%emt 0:00:02]} d6 {[%emt 0:00:02]} 8. Bh2 {[%emt 0:00:10] A48: 1 d4 Nf6 2 Nf3 g6: Torre, London and Colle Systems.} Nbd7 {[%emt 0:00:08]} 9. a4 {[%emt 0:00:09]} a6 {[%emt 0:00:08]} 10. Nbd2 {[%emt 0:00:24] The position is equal.} Ne4 {[%emt 0:00:07] is currently scoring better than 10...c5.} 11. Nxe4 {[%emt 0:00:26]} Bxe4 {[%emt 0:00:01]} 12. Nd2 {[%emt 0:00:02]} Bb7 {[%emt 0:00:01]} 13. c3 {[%emt 0:00:20] [#]} Nf6 $146 {[%emt 0:00:25]} ({Predecessor:} 13... e5 14. Bf3 Qc8 15. Qb3 Kh8 16. Bd5 f5 17. Nf3 Bxd5 18. Qxd5 Nf6 19. Qc4 e4 {0-1 Yuffa,D (2594)-Demchenko,A (2641) ACP ChessBase KO blitz 2020 (2.2)}) 14. Bd3 {[%emt 0:00:03]} Qc8 {[%emt 0:00:08]} 15. Qe2 {[%emt 0:00:06]} Re8 {[%emt 0:00:08]} 16. f4 {[%emt 0:00:19][%cal Bf2f4,Bf4f5][%mdl 32]} c5 {[%emt 0:00:44]} 17. f5 {[%emt 0:00:11]} cxd4 {[%emt 0:00:08]} 18. exd4 {[%emt 0:00:06]} Qc6 {[%emt 0:00:13][%cal Oe7e5]} 19. Rf2 {[%emt 0:00:09]} Bh6 {[%emt 0:00:40]} (19... e5 $1 $11 {keeps the balance.}) 20. Bf4 {[%emt 0:00:27]} ({Better is} 20. Nc4 $16) 20... g5 $2 {[%emt 0:00:43] Loses the game.} (20... Bxf4 $11 {and Black stays safe.} 21. Rxf4 g5) 21. Be3 $18 {[%emt 0:00:10] [#] h4 would be deadly.} Kh8 {[%emt 0:00:42]} 22. Bc4 {[%emt 0:00:02][%cal Bd3c4,Bc4f7,Bf7e6][%mdl 32]} Rf8 {[%emt 0:00:09]} (22... Kg8 {was called for.} 23. h4 d5) 23. h4 {[%emt 0:00:30][%cal Bh3h4,Bh4g5][%mdl 32]} Rg8 {[%emt 0:00:14]} 24. Bxf7 {[%emt 0:00:03]} Rg7 25. Be6 {[%emt 0:00:17]} Rf8 {[%emt 0:00:18]} 26. Nf3 {[%emt 0:00:28][%cal Rh4g5]} Ng4 {[%emt 0:00:03]} (26... Qe8 $142 27. Nxg5 (27. Bxg5 Bxg5 28. hxg5 Bxf3 $18) 27... Bxg5 28. Bxg5 Ne4) 27. d5 {[%emt 0:00:02]} Qe8 {[%emt 0:00:10]} 28. hxg5 {[%emt 0:00:05]} Nxe3 {[%emt 0:00:15]} 29. gxh6 {[%emt 0:00:15]} Rg4 {[%emt 0:00:02]} 30. Qxe3 {[%emt 0:00:02]} Rf6 {[%emt 0:00:00]} 31. Rd1 {[%emt 0:00:07][%cal Ba1d1,Bd1d4,Bd4g4,Bg4g8][%mdl 32]} Qh5 {[%emt 0:00:02]} 32. Rd4 {[%emt 0:00:02] Intending Rxg4 and mate.} Rxh6 {[%emt 0:00:01] [#]} 33. Qxh6 $3 {[%emt 0:00:12]} Qxh6 {[%emt 0:00:01]} 34. Rxg4 {[%emt 0:00:01][%csl Ge6][%cal Rg4g8]} Qc1+ {[%emt 0:00:01]} 35. Kh2 {[%emt 0:00:05]} (35. Rf1 $142 Qe3+ 36. Kh2 Qh6+ 37. Kg3 Qg7 38. Rxg7 Kxg7 39. Nd4 a5 40. f6+ exf6 41. Nf5+ Kf8 42. Rh1) 35... h6 {[%emt 0:00:00]} 36. Nd4 {[%emt 0:00:14]} Qe3 {[%emt 0:00:04]} 37. Rf3 {[%emt 0:00:09]} Qe5+ {[%emt 0:00:01]} 38. Rfg3 {[%emt 0:00:01]} h5 {[%emt 0:00:09]} 39. Rg8+ {[%emt 0:00:04]} Kh7 {[%emt 0:00:01]} 40. Nf3 {[%emt 0:00:01] Weighted Error Value: White=0.13 (very precise) /Black=0.69} 1-0

[Event "Superbet Blitz Poland 2023"]
[Site "Warsaw"]
[Date "2023.05.25"]
[Round "14"]
[White "So, Wesley"]
[Black "Aronian, Levon"]
[Result "1/2-1/2"]
[ECO "E32"]
[WhiteElo "2760"]
[BlackElo "2745"]
[Annotator "TA"]
[PlyCount "82"]
[EventDate "2023.05.24"]
[EventType "tourn"]
[EventCountry "POL"]
[SourceTitle "playchess.com"]
[Source "ChessBase"]
[SourceQuality "1"]
[TimeControl "300+2"]

{[%evp 13,82,0,0,0,0,0,0,0,0,0,0,0,0,0,0,0,0,-1,0,0,11,6,8,8,16,14,22,26,27,23,22,12,12,12,12,8,20,0,0,0,0,0,0,0,0,0,0,0,0,0,0,0,0,-11,-11,-17,-17,-17,-17,-31,-31,-37,-22,-37,-15,-15,0,-38,0,-15,0]} 1. d4 {[%emt 0:00:01]} Nf6 {[%emt 0:00:04]} 2. c4 {[%emt 0:00:03]} e6 {[%emt 0:00:01]} 3. Nc3 {[%emt 0:00:01]} Bb4 {[%emt 0:00:01]} 4. Qc2 {[%emt 0:00:01]} O-O {[%emt 0:00:03]} 5. e4 {[%emt 0:00:02][%cal Be2e4,Be4e5][%mdl 32]} d5 {[%emt 0:00:02]} 6. e5 {[%emt 0:00:01]} Ne4 {[%emt 0:00:02]} 7. Bd3 {[%emt 0:00:01]} c5 $1 {[%emt 0:00:04]} 8. Nf3 {[%emt 0:00:02] 0-0 is the strong threat. E32: Nimzo-Indian: Classical (4 Qc2): 4...0-0.} cxd4 {[%emt 0:00:03]} 9. Nxd4 {[%emt 0:00:01]} Nd7 {[%emt 0:00:09]} 10. Bf4 {[%emt 0:00:02]} Qh4 {[%emt 0:00:10]} 11. g3 {[%emt 0:00:02]} Qh5 {[%emt 0:00:01]} 12. O-O {[%emt 0:00:02]} Bxc3 {[%emt 0:00:19]} 13. bxc3 {[%emt 0:00:02]} g5 $1 {[%emt 0:00:02]} ({Much less strong is} 13... Nxe5 14. Be2 Ng4 15. Bxg4 Qxg4 16. f3 $16) 14. cxd5 {[%emt 0:00:04]} exd5 {[%emt 0:00:07]} 15. Be3 {[%emt 0:00:20] Hoping for f3.} Nxe5 {[%emt 0:00:03] A dynamic duo of knights.} 16. f3 {[%emt 0:00:02] Prevents Ng4} (16. Be2 {seems wilder.} g4 17. f3 gxf3 18. Nxf3 Bg4 19. Nxe5 Bxe2 20. Rf4) 16... Nxd3 {[%emt 0:00:20]} 17. Qxd3 {[%emt 0:00:27]} Nd6 {[%emt 0:00:01]} 18. g4 {[%emt 0:00:05]} Qg6 {[%emt 0:00:02]} 19. Qxg6+ {[%emt 0:00:01]} fxg6 {[%emt 0:00:20]} 20. Bxg5 {[%emt 0:00:04] [#] Be7 would be deadly.} Rf7 {[%emt 0:00:01] Wards off Be7. Black is weak on the dark squares} 21. Rae1 {[%emt 0:00:48]} Bd7 {[%emt 0:00:03]} 22. Re5 {[%emt 0:00:06]} Nb5 {[%emt 0:00:02]} 23. Nxb5 {[%emt 0:00:28]} Bxb5 {[%emt 0:00:02]} 24. Rf2 {[%emt 0:00:01] [#]} Bc6 $146 {[%emt 0:00:41]} ({Predecessor:} 24... Rd7 25. Be3 Rc8 26. Bd4 a6 27. f4 Bd3 28. Re6 Kf7 29. Rf6+ Kg8 30. f5 {½-½ Wang,K (2378)-Shmeliov,D (2430) New York GM-B 2021 (6)}) 25. Be3 {[%emt 0:00:03]} d4 {[%emt 0:00:21]} 26. Bxd4 {[%emt 0:00:06]} Bxf3 {[%emt 0:00:02]} 27. h3 {[%emt 0:00:04]} a6 {[%emt 0:00:18]} 28. a3 {[%emt 0:00:07]} Bc6 {[%emt 0:00:14]} 29. Bc5 {[%emt 0:00:04]} Rxf2 {[%emt 0:00:04]} 30. Kxf2 {[%emt 0:00:01]} Re8 {[%emt 0:00:02]} 31. Rxe8+ {[%emt 0:00:01]} Bxe8 $11 {[%emt 0:00:01][%mdl 4096] Endgame KB-KB} 32. g5 {[%emt 0:00:01]} Kf7 {[%emt 0:00:06]} 33. Ke3 {[%emt 0:00:02]} Ke6 {[%emt 0:00:01]} 34. Kd2 {[%emt 0:00:35]} Kf5 {[%emt 0:00:06]} 35. h4 {[%emt 0:00:02]} Kg4 {[%emt 0:00:06]} 36. Bf2 {[%emt 0:00:04]} Kf3 {[%emt 0:00:01]} 37. Ke1 {[%emt 0:00:05]} Bf7 {[%emt 0:00:24]} 38. Bd4 {[%emt 0:00:01]} Kg3 {[%emt 0:00:22]} 39. Bf2+ {[%emt 0:00:01]} Kf3 {[%emt 0:00:02]} 40. Bd4 {[%emt 0:00:01]} Kg3 {[%emt 0:00:05]} 41. Bf2+ {[%emt 0:00:01]} Kf3 {[%emt 0:00:00] Weighted Error Value: White=0.03 (flawless) /Black=0.04 (flawless)} 1/2-1/2

[Event "Superbet Blitz Poland 2023"]
[Site "Warsaw"]
[Date "2023.05.25"]
[Round "14"]
[White "Vachier-Lagrave, Maxime"]
[Black "Duda, Jan-Krzysztof"]
[Result "1-0"]
[ECO "B12"]
[WhiteElo "2742"]
[BlackElo "2724"]
[Annotator "TA"]
[PlyCount "97"]
[EventDate "2023.05.24"]
[EventType "tourn"]
[EventCountry "POL"]
[SourceTitle "playchess.com"]
[Source "ChessBase"]
[SourceQuality "1"]
[TimeControl "300+2"]

{[%evp 16,97,32,43,55,53,54,14,14,20,22,22,16,18,20,25,29,36,24,15,58,61,64,53,53,60,106,92,148,129,344,338,329,333,414,205,324,334,339,267,352,345,332,159,387,179,283,196,175,202,401,264,356,326,343,304,418,369,710,704,706,689,711,700,650,642,1503,1401,1087,983,824,758,2324,1911,5185,1620,29978,29978,29978,29974,29988,29989,29989,29990]} 1. e4 {[%emt 0:00:01]} c6 {[%emt 0:00:01]} 2. d4 {[%emt 0:00:01]} d5 {[%emt 0:00:01]} 3. e5 {[%emt 0:00:01]} Bf5 {[%emt 0:00:01]} 4. h4 {[%emt 0:00:01]} h5 {[%emt 0:00:02]} 5. c4 {[%emt 0:00:01]} e6 {[%emt 0:00:01]} 6. Nc3 {[%emt 0:00:01]} dxc4 {[%emt 0:00:06]} 7. Bxc4 {[%emt 0:00:02]} Nd7 {[%emt 0:00:01]} 8. Nge2 {[%emt 0:00:06]} Nb6 {[%emt 0:00:05]} 9. Bb3 {[%emt 0:00:06]} Ne7 {[%emt 0:00:04] B12: Caro-Kann: Advance Variation.} 10. Bg5 {[%emt 0:00:10]} Qd7 {[%emt 0:00:08]} 11. Ng3 {[%emt 0:00:05]} Bg6 {[%emt 0:00:08] The position is equal.} 12. O-O {[%emt 0:00:08]} Nf5 {[%emt 0:00:19]} 13. Nxf5 {[%emt 0:00:11]} Bxf5 {[%emt 0:00:02]} 14. Qd2 {[%emt 0:00:06]} Be7 {[%emt 0:00:03]} 15. Rad1 {[%emt 0:00:05]} f6 {[%emt 0:00:25]} 16. exf6 {[%emt 0:00:15]} gxf6 {[%emt 0:00:02]} 17. Bf4 {[%emt 0:00:01]} Nd5 {[%emt 0:00:36]} (17... Kf7 {with more complications.} 18. Rfe1 Rag8 19. a3 Rg4) 18. Nxd5 {[%emt 0:00:05] [#]} exd5 $146 {[%emt 0:00:03]} ({Predecessor:} 18... cxd5 19. Rc1 Bd8 20. Qb4 a5 21. Qc5 b6 22. Qc3 Rg8 23. Bd1 Bg4 24. f3 Bf5 {1-0 Belaska,P (2230)-Stluka,P (2295) CZE-chT2b 9596 1995}) 19. Rde1 {[%emt 0:00:08]} Kf7 {[%emt 0:00:17]} 20. Re3 {[%emt 0:00:01]} a5 {[%emt 0:00:06]} (20... Rae8 $14) 21. a3 $16 {[%emt 0:00:18] White is more active.} a4 {[%emt 0:00:41]} ({Black should try} 21... Rae8) 22. Rfe1 {[%emt 0:00:01]} Rhe8 {[%emt 0:00:19]} (22... Bxa3 $16 23. Bxd5+ (23. bxa3 axb3 24. Rxb3 Rae8 $11) 23... cxd5 24. bxa3 Rhe8) 23. Bd1 $18 {[%emt 0:00:22]} Bg6 {[%emt 0:00:01]} 24. Bc2 {[%emt 0:00:01]} f5 {[%emt 0:01:10]} 25. g3 {[%emt 0:00:17]} (25. Be5 $142) 25... b5 {[%emt 0:00:01]} (25... Bf8 $142 26. Rxe8 Rxe8 27. Rxe8 (27. Bxa4 Rxe1+ 28. Qxe1 Bg7 $18) 27... Qxe8 28. Bxa4 Kg8) 26. Be5 {[%emt 0:00:13]} Kg8 {[%emt 0:00:35]} 27. Rf3 {[%emt 0:00:20] Black is weak on the dark squares} Kh7 {[%emt 0:00:01] Prevents Qh6+} 28. Qf4 {[%emt 0:00:02] [#] aiming for g4.} Rf8 {[%emt 0:00:02]} 29. Rfe3 {[%emt 0:00:10]} (29. g4 $18 {is the precise move to win.} hxg4 30. Rfe3) 29... Rf7 $2 {[%emt 0:00:01] A mistake that costs the game.} (29... Rae8 $16 {is a better defense.} 30. R1e2 Bd8) 30. Qf3 $40 {[%emt 0:00:09][%mdl 128] White is out for blood.} (30. g4 $142) 30... Rg8 {[%emt 0:00:01] Against Bb8} (30... Re8 $142 31. Qf4 Rff8) 31. Kh2 {[%emt 0:00:13]} Bf8 {[%emt 0:00:11]} 32. Bf4 {[%emt 0:00:14][%cal Be5f4,Bf4g5,Bg5e7][%mdl 32] [#] Hoping for Re6.} Bg7 $2 {[%emt 0:00:01]} (32... Re7 {was necessary.} 33. Rxe7+ Bxe7 34. Bxf5 {[%mdl 64] Deflection} Qxf5 35. Rxe7+ Rg7) 33. Bg5 {[%emt 0:00:01] Re7 is the strong threat.} Rgf8 {[%emt 0:00:09]} 34. Re7 {[%emt 0:00:05]} Qc8 {[%emt 0:00:08]} 35. Qf4 {[%emt 0:00:14]} Kg8 {[%emt 0:00:08]} 36. Qd6 {[%emt 0:00:16]} Rxe7 $2 {[%emt 0:00:09]} (36... Kh7 37. R1e6 Rxe7 38. Bxe7 Re8 39. Rxg6 Rxe7) 37. Bxe7 {[%emt 0:00:05]} Qe8 {[%emt 0:00:03]} 38. Re3 {[%emt 0:00:37]} Bxd4 {[%emt 0:00:01]} 39. Bxf8 {[%emt 0:00:03]} Bxe3 {[%emt 0:00:02]} 40. fxe3 {[%emt 0:00:02]} Qxe3 {[%emt 0:00:03]} 41. Qxg6+ {[%emt 0:00:02]} Kxf8 {[%emt 0:00:01]} 42. Qxf5+ {[%emt 0:00:10]} Ke8 {[%emt 0:00:02]} 43. Qxh5+ {[%emt 0:00:01]} Kd7 {[%emt 0:00:01]} 44. Qf5+ {[%emt 0:00:03]} Ke8 {[%emt 0:00:05]} 45. h5 {[%emt 0:00:04]} Qd2+ {[%emt 0:00:02]} 46. Kh3 {[%emt 0:00:01] White mates.} Qc1 {[%emt 0:00:01]} 47. Kg4 {[%emt 0:00:06]} d4 {[%emt 0:00:03]} 48. Qe6+ {[%emt 0:00:05]} Kd8 {[%emt 0:00:01]} 49. Qd6+ {[%emt 0:00:01] Weighted Error Value: White=0.33/Black=0.69} 1-0

[Event "Superbet Blitz Poland 2023"]
[Site "Warsaw"]
[Date "2023.05.25"]
[Round "14"]
[White "Deac, Bogdan-Daniel"]
[Black "Giri, Anish"]
[Result "0-1"]
[ECO "D04"]
[WhiteElo "2700"]
[BlackElo "2768"]
[Annotator "TA"]
[PlyCount "98"]
[EventDate "2023.05.24"]
[EventType "tourn"]
[EventCountry "POL"]
[SourceTitle "playchess.com"]
[Source "ChessBase"]
[SourceQuality "1"]
[TimeControl "300+2"]

{[%evp 9,98,6,9,-3,8,14,22,3,13,0,0,0,0,0,4,5,24,18,19,18,37,34,36,26,62,27,54,28,91,78,68,85,81,44,37,0,40,0,35,35,41,37,60,22,32,0,0,0,0,0,0,0,0,0,6,16,60,-75,87,87,87,87,80,0,0,0,87,0,12,-262,-204,-253,-249,-200,-87,-350,-145,-402,-393,-12827,-12829,-12835,-12835,-12835,-12836,-12836,-12836,-29979,-29980,-29983,-29983]} 1. d4 {[%emt 0:00:02]} d5 {[%emt 0:00:01]} 2. Nf3 {[%emt 0:00:02]} Nf6 {[%emt 0:00:00]} 3. e3 {[%emt 0:00:02]} Bf5 {[%emt 0:00:03]} 4. Bd3 {[%emt 0:00:21]} Bg6 {[%emt 0:00:11]} 5. Ne5 {[%emt 0:00:10]} Bxd3 {[%emt 0:00:37]} 6. cxd3 {[%emt 0:00:01] [#] D04: Colle System.} Nbd7 $146 {[%emt 0:00:08]} ({Predecessor:} 6... c6 7. O-O g6 8. Nd2 Bg7 9. f4 Nfd7 10. Ndf3 O-O 11. b3 a5 12. Bb2 a4 {1-0 Zancas Vidal,F (2027)-Echarri Torres,M (2139) Barcelona Sants op 11th 2009 (6)}) 7. Qb3 {[%emt 0:00:44]} Rb8 {[%emt 0:00:01]} 8. Nd2 {[%emt 0:01:40] The position is equal.} e6 {[%emt 0:00:04]} 9. Ndf3 {[%emt 0:00:03]} Be7 {[%emt 0:00:04]} 10. Bd2 {[%emt 0:00:23][%cal Bc1d2,Bd2c3,Bc3d4][%mdl 32]} O-O {[%emt 0:00:02]} 11. Rc1 {[%emt 0:00:01]} c5 {[%emt 0:00:33]} 12. Bc3 {[%emt 0:00:35]} cxd4 {[%emt 0:00:36]} 13. Bxd4 {[%emt 0:00:02]} Qa5+ {[%emt 0:00:00]} 14. Ke2 {[%emt 0:00:29]} Bd6 {[%emt 0:00:43]} 15. Rc2 {[%emt 0:00:12]} Nxe5 {[%emt 0:00:22]} 16. Nxe5 {[%emt 0:00:05]} Qd8 {[%emt 0:00:10]} 17. f4 {[%emt 0:00:07]} a6 {[%emt 0:00:35]} 18. Rhc1 {[%emt 0:00:08] Hoping for Bb6.} Qe7 {[%emt 0:00:01]} (18... Nd7 $11) 19. Bc5 $16 {[%emt 0:00:05]} Nd7 {[%emt 0:01:11][%cal Rd7c5]} 20. Bxd6 {[%emt 0:00:03]} Qxd6 {[%emt 0:00:00]} 21. Nxd7 Qxd7 {[%emt 0:00:01]} 22. Qb6 {[%emt 0:00:10]} h6 {[%emt 0:00:07][%cal Oe6e5]} 23. Kf2 {[%emt 0:00:10]} Rfc8 {[%emt 0:00:06]} 24. Rc7 {[%emt 0:00:04]} Rxc7 {[%emt 0:00:01]} 25. Qxc7 $14 {[%emt 0:00:08][%mdl 4096] Endgame KQR-KQR} Qe8 {[%emt 0:00:01]} 26. a4 {[%emt 0:00:03]} Rd8 {[%emt 0:00:03]} 27. a5 {[%emt 0:00:02][%cal Ob2b4]} (27. b3 $5 {[%cal Rc7b7]}) 27... Rd7 {[%emt 0:00:03]} 28. Qc8 {[%emt 0:00:01]} Rd8 {[%emt 0:00:04]} 29. Qxb7 {[%emt 0:00:01]} Rb8 30. Qxa6 {[%emt 0:00:02]} Rxb2+ {[%emt 0:00:01]} 31. Kg3 {[%emt 0:00:02]} Kh7 {[%emt 0:00:02]} 32. Qc6 $36 {[%emt 0:00:02][%mdl 2048] White is more active.} Qd8 {[%emt 0:00:04]} 33. a6 {[%emt 0:00:02] [#]} (33. Qc3 $1 $14 {stays ahead.} Qb8 34. a6) 33... Qf6 $2 {[%emt 0:00:03]} (33... Qa5 $1 $17 {[%cal Ra5d2] ( -> ...Qd2)} 34. Rd1 Re2) 34. Rc2 $16 {[%emt 0:00:03] Strongly threatening Rxb2.} Qg6+ {[%emt 0:00:04]} 35. Kf2 {[%emt 0:00:01]} Rb1 {[%emt 0:00:06]} 36. Rc1 {[%emt 0:00:01]} Rb2+ {[%emt 0:00:01]} 37. Rc2 {[%emt 0:00:01]} Rb1 {[%emt 0:00:00]} 38. Qc3 {[%emt 0:00:05]} (38. a7 $16 Qxd3 39. Re2 (39. a8=B Rf1+ {[%mdl 64] Deflection} 40. Kg3 Qxe3+ 41. Kh4 Rxf4+ 42. g4 g5+ 43. Kh5 Qh3#)) 38... Qh5 {[%emt 0:00:03] And now ...Qh4+ would win.} 39. e4 $2 {[%emt 0:00:03][%mdl 8192]} (39. Rc1 $11 {and White is okay.} d4 40. exd4 Rxc1 41. Qxc1) 39... Qh4+ $19 {[%emt 0:00:01]} (39... Qxh2 $2 {too greedy.} 40. Kf3 $19) 40. Ke3 {[%emt 0:00:02]} Qxh2 {[%emt 0:00:02]} 41. Qd2 {[%emt 0:00:02] [#]} Ra1 {[%emt 0:00:04]} (41... Rf1 $1 $19 {and Black stays clearly on top. ...Qg1+ would be deadly.} 42. Kd4 Ra1) 42. exd5 $2 {[%emt 0:00:03][%mdl 8192]} (42. Ra2 $17 Qg1+ 43. Qf2 (43. Kf3 Qb1 $17) 43... Qxf2+ 44. Rxf2) 42... Rxa6 {[%emt 0:00:02]} (42... exd5 $19 {[%cal Oa1f1] is more deadly. White must now prevent ...Rf1!} 43. Qf2 Rxa6) 43. Qf2 {[%emt 0:00:01][%mdl 8192]} (43. Rc6 $17 {only move.} Rxc6 44. dxc6 Qg1+ 45. Ke4) 43... exd5 {[%emt 0:00:01][%cal Be6d5,Bd5d4][%mdl 32]} 44. f5 $2 {[%emt 0:00:02]} (44. Re2) 44... Qe5+ {[%emt 0:00:01]} 45. Kd2 {[%emt 0:00:01]} d4 {[%emt 0:00:00]} 46. Qf3 {[%emt 0:00:01]} Ra1 {[%emt 0:00:01][%csl Ga1][%cal Re5e1]} 47. Qf2 {[%emt 0:00:01] Repels Qe1+} Rb1 {[%emt 0:00:02]} 48. g4 {[%emt 0:00:01]} f6 {[%emt 0:00:01]} 49. Rc4 {[%emt 0:00:03]} Qa5+ {[%emt 0:00:01] Weighted Error Value: White=0.69/Black=0.23 (precise)} 0-1

[Event "Superbet Blitz Poland 2023"]
[Site "Warsaw"]
[Date "2023.05.25"]
[Round "14"]
[White "Shevchenko, Kirill"]
[Black "Carlsen, Magnus"]
[Result "0-1"]
[ECO "C10"]
[WhiteElo "2684"]
[BlackElo "2853"]
[Annotator "TA"]
[PlyCount "114"]
[EventDate "2023.05.24"]
[EventType "tourn"]
[EventCountry "POL"]
[SourceTitle "playchess.com"]
[Source "ChessBase"]
[SourceQuality "1"]
[TimeControl "300+2"]

{[%evp 16,114,28,24,27,35,26,27,46,46,29,27,35,5,7,7,16,8,22,3,15,22,25,20,38,31,34,31,35,21,24,0,0,0,0,0,0,0,0,0,0,0,0,0,0,-5,0,0,0,-1,0,0,0,0,0,0,0,0,0,0,0,0,0,0,0,0,0,0,0,0,0,-295,-302,-363,-329,-1637,-1541,-1609,-1601,-1660,-708,-1430,-1179,-1369,-975,-1035,0,0,0,0,0,-12841,-12841,-12845,-12846,-27999,-27999,-27999,-27999,-27999,-27999]} 1. e4 {[%emt 0:00:01]} c5 {[%emt 0:00:08]} 2. c3 {[%emt 0:00:08]} d5 {[%emt 0:00:28]} 3. exd5 {[%emt 0:00:01]} Qxd5 {[%emt 0:00:02]} 4. d4 {[%emt 0:00:01]} Nf6 {[%emt 0:00:02]} 5. Nf3 {[%emt 0:00:01]} e6 {[%emt 0:00:01]} 6. Na3 {[%emt 0:00:02]} Qd8 {[%emt 0:00:01]} 7. Nc4 {[%emt 0:00:09]} Nc6 {[%emt 0:00:13]} 8. Nce5 {[%emt 0:00:23]} Nxe5 {[%emt 0:00:24]} 9. Nxe5 {[%emt 0:00:01]} a6 {[%emt 0:00:01] C10: French with 3 Nc3: Unusual Black 3rd moves and 3...dxe4.} 10. Be3 {[%emt 0:00:27]} Qc7 {[%emt 0:00:09]} 11. Qa4+ {[%emt 0:00:18]} Nd7 {[%emt 0:00:08] White has an edge.} 12. Bb5 {[%emt 0:00:12]} cxd4 {[%emt 0:00:02]} 13. Bxd7+ {[%emt 0:00:27]} Bxd7 {[%emt 0:00:01]} 14. Nxd7 {[%emt 0:00:01]} (14. Qxd4 {keeps more tension.} Bb5 15. a4 Bd6 16. Nxf7 Kxf7 17. axb5 axb5 18. Rd1) 14... Qxd7 {[%emt 0:00:02]} 15. Qxd4 {[%emt 0:00:10]} Qxd4 {[%emt 0:00:05]} 16. Bxd4 {[%emt 0:00:00] [#]} f6 $5 $146 {[%emt 0:00:02][%mdl 8] New and interesting.} ({Predecessor:} 16... Bd6 17. O-O-O Ke7 18. Rd3 Rac8 19. Rhd1 Rc6 20. g3 Rg8 21. Kc2 h5 {½-½ Khairullin,I (2543)-Najer,E (2648) RUS-ch Superfinal 2006 (4)}) 17. Ke2 {[%emt 0:00:07]} Rc8 {[%emt 0:00:05]} 18. Rhd1 {[%emt 0:00:08]} Be7 {[%emt 0:00:22]} 19. Be3 {[%emt 0:00:09]} Rc7 {[%emt 0:00:23]} 20. a4 {[%emt 0:00:08]} Kf7 {[%emt 0:00:03]} 21. a5 {[%emt 0:00:12]} Ke8 $1 {[%emt 0:00:51]} 22. Ra4 {[%emt 0:00:12]} Rd7 {[%emt 0:00:30]} 23. Bb6 {[%emt 0:00:09] Black must now prevent Rc4.} Rxd1 {[%emt 0:00:16]} 24. Kxd1 $11 {[%emt 0:00:00][%mdl 4096] Endgame KRB-KRB} Bd6 {[%emt 0:00:01]} 25. Ke2 {[%emt 0:00:35]} Kd7 {[%emt 0:00:03]} 26. Rd4 {[%emt 0:00:06] Bc5 would be deadly.} e5 {[%emt 0:00:01]} 27. Rc4 {[%emt 0:00:25]} Ke6 {[%emt 0:00:06]} 28. Kd3 {[%emt 0:00:06]} f5 {[%emt 0:00:02]} 29. f3 {[%emt 0:00:00]} Kd5 {[%emt 0:00:05]} 30. Rh4 {[%emt 0:00:15]} Be7 {[%emt 0:00:03]} 31. Ra4 {[%emt 0:00:12]} h5 {[%emt 0:00:07]} 32. Ra1 {[%emt 0:00:11]} h4 {[%emt 0:00:09]} 33. c4+ {[%emt 0:00:03]} Ke6 {[%emt 0:00:01]} 34. h3 {[%emt 0:00:03]} Rh6 {[%emt 0:00:01]} 35. Re1 {[%emt 0:00:01]} Rh8 {[%emt 0:00:17]} 36. Bc7 {[%emt 0:00:12]} Bf6 {[%emt 0:00:14]} 37. Bxe5 {[%emt 0:00:04]} Rd8+ {[%emt 0:00:03]} (37... Bxe5 $5 38. f4 $8 {[%mdl 64] Pin} Rd8+ 39. Kc2 Rd4 40. Rxe5+ (40. fxe5 $2 Rxc4+ 41. Kd3 Ra4 $19) 40... Kf6 $11) 38. Kc2 {[%emt 0:00:08] Threatens to win with Bc7+.} (38. Bd4+ $2 Kf7 39. Kc2 Rxd4 $19) 38... Bxe5 {[%emt 0:00:02] KRB-KR} 39. f4 {[%emt 0:00:01][%mdl 64] Pin} Rd4 {[%emt 0:00:01][%csl LRc4,LRf4][%mdl 64] Double Attack} 40. Rxe5+ {[%emt 0:00:03] KR-KR} (40. fxe5 $2 {too greedy.} Rxc4+ 41. Kd3 Ra4 $19) 40... Kf6 {[%emt 0:00:02]} 41. Kc3 {[%emt 0:00:13]} Rxf4 {[%emt 0:00:01]} 42. Re2 {[%emt 0:00:00]} g5 {[%emt 0:00:03] Strongly threatening ...g4.} 43. Kb4 $2 {[%emt 0:00:01][%mdl 8192] [#]} (43. b4 $11) 43... g4 $1 $19 {[%emt 0:00:08]} 44. hxg4 {[%emt 0:00:01]} fxg4 {[%emt 0:00:01][%cal Bf5g4,Bg4g3][%mdl 32]} 45. Kc5 $2 {[%emt 0:00:03]} (45. Re8 g3 46. Rh8) 45... g3 {[%emt 0:00:05]} ({Worse is} 45... h3 46. gxh3 gxh3 47. Rh2 $11) 46. Re8 {[%emt 0:00:15]} Rf2 {[%emt 0:00:01]} 47. Rh8 {[%emt 0:00:05]} Kg5 {[%emt 0:00:10]} ({Stronger than} 47... Rxb2 48. Rxh4 Rxg2 49. Rg4 $17) (47... Rxg2 $142 48. Rxh4 Rxb2) 48. Rg8+ {[%emt 0:00:01]} Kf4 {[%emt 0:00:01]} 49. Rh8 {[%emt 0:00:03]} Ke3 {[%emt 0:00:01]} 50. b4 {[%emt 0:00:03] [#]} Rxg2 $2 {[%emt 0:00:06]} (50... Rf4 $1 $19 51. Rd8 h3 52. gxh3 Rf6) 51. Rxh4 $11 {[%emt 0:00:01]} Rc2 {[%emt 0:00:01]} 52. Kb6 {[%emt 0:00:03]} Kf3 {[%emt 0:00:09] ...g2 is the strong threat.} (52... g2 $5 53. Rg4 $8 Kf3 54. Rxg2 Rxg2 55. Kxb7 Rg7+ 56. Kxa6 Ke4 $11) 53. Rh8 $2 {[%emt 0:00:03][%mdl 8192]} (53. Rh3 $11) 53... Rxc4 $19 {[%emt 0:00:02]} 54. Kxb7 {[%emt 0:00:02]} Rxb4+ {[%emt 0:00:01]} 55. Kxa6 {[%emt 0:00:01]} g2 {[%emt 0:00:01] Black mates.} 56. Rh3+ {[%emt 0:00:02]} Kg4 {[%emt 0:00:01]} 57. Rh8 {[%emt 0:00:04]} Kg3 {[%emt 0:00:01] Weighted Error Value: White=0.57/Black=0.34} (57... g1=R $2 58. Rg8+ {[%mdl 64] Skewer} Kf5 59. Rxg1 $18) 0-1